bitfinex-derivatives/quotes_BNBF0:USTF0_20251010
["timestamp","ask_amount","ask_price","bid_price","bid_amount"]
[1760137917862,4.4410537,1104.7,1099.0,2.06681409]
[1760137918162,3.12258529,1104.8,1099.0,2.06681409]
[1760137918366,2.22963581,1103.6,1098.9,2.92919511]
[1760137918565,2.22963581,1103.6,1099.0,0.55873934]
[1760137918766,2.22963581,1103.6,1099.1,0.55873934]
[1760137918967,2.22963581,1103.2,1099.2,0.55873934]
[1760137919167,2.22963581,1104.0,1099.2,0.55873934]
[1760137919368,0.15818074,1099.5,1099.2,0.55873934]
[1760137920964,0.15818074,1099.5,1099.2,0.54637413]
[1760137922070,1.33673682,1103.4,1099.2,0.54637413]
[1760137922267,0.15813941,1100.0,1099.2,0.54637413]
[1760137922570,0.88841899,1103.2,1098.6,2.06681409]
[1760137922770,0.88841899,1103.3,1098.5,2.06681409]
[1760137923067,0.88841899,1103.2,1098.5,2.06681409]
[1760137923371,0.15815198,1100.1,1098.8,2.06681409]
[1760137923568,0.15815198,1100.1,1098.9,2.60480036]
[1760137923771,0.15815198,1100.1,1099.0,0.53798627]
[1760137924068,0.15815198,1100.1,1099.1,0.53798627]
[1760137924268,0.15815198,1100.1,1099.2,0.53798627]
[1760137924468,0.15815198,1100.1,1099.2,1.77510199]
[1760137924668,0.15815198,1100.1,1099.2,0.53798627]
[1760137925471,0.15815198,1100.1,1099.0,0.53798627]
[1760137925770,0.15815198,1100.1,1099.1,0.53798627]
[1760137925969,0.15815198,1100.1,1099.2,0.53798627]
[1760137926168,0.15815198,1100.1,1098.8,0.53798627]
[1760137926369,2.22963581,1103.7,1097.7,1.23711572]
[1760137926570,2.22963581,1103.7,1097.8,1.23711572]
[1760137926771,2.22963581,1103.9,1098.4,1.23711572]
[1760137926972,2.22963581,1104.8,1098.3,1.23711572]
[1760137927473,2.22963581,1103.3,1098.3,1.23711572]
[1760137927673,2.22963581,1103.3,1097.8,1.23711572]
[1760137927978,2.22963581,1103.6,1097.7,1.23711572]
[1760137928270,2.22963581,1103.6,1097.0,1.23711572]
[1760137928473,2.22963581,1103.3,1096.9,1.23711572]
[1760137928669,2.22963581,1103.3,1097.2,1.23711572]
[1760137929375,0.1584126,1098.8,1097.0,1.23711572]
[1760137929575,0.1584126,1098.8,1096.8,1.23711572]
[1760137930274,0.1584126,1098.8,1096.7,1.23711572]
[1760137930471,0.1584126,1098.8,1096.8,1.23711572]
[1760137930673,0.1584126,1098.8,1096.0,1.23711572]
[1760137930873,0.1584126,1098.8,1096.4,1.23711572]
[1760137931371,0.1584126,1098.8,1096.0,1.23711572]
[1760137931671,0.1584126,1098.8,1095.6,1.23711572]
[1760137931872,0.1584126,1098.8,1095.9,1.23711572]
[1760137932074,0.1584126,1098.8,1096.2,1.23711572]
[1760137932274,0.1584126,1098.8,1095.8,1.23711572]
[1760137932474,0.1584126,1098.8,1096.0,1.23711572]
[1760137933075,0.1584126,1098.8,1095.9,1.23711572]
[1760137934278,0.1584126,1098.8,1096.3,1.23711572]
[1760137934473,0.1584126,1098.8,1096.5,1.23711572]
[1760137934678,0.1584126,1098.8,1096.7,1.23711572]
[1760137934878,0.1584126,1098.8,1096.3,1.23711572]
[1760137935279,0.1584126,1098.8,1096.4,1.23711572]
[1760137935576,0.1584126,1098.8,1096.8,1.23711572]
[1760137935776,0.1584126,1098.8,1097.3,1.23711572]
[1760137936075,3.12258529,1103.5,1095.3,0.15846958]
[1760137936076,2.22963581,1104.3,1098.6,1.23711572]
[1760137936279,2.22963581,1104.7,1098.9,1.23711572]
[1760137936579,2.22963581,1104.7,1098.4,1.23711572]
[1760137936776,2.22963581,1105.1,1098.9,1.23711572]
[1760137937075,3.12258529,1105.2,1098.7,2.06681409]
[1760137937274,4.4410537,1106.0,1098.7,2.06681409]
[1760137937578,4.4410537,1106.0,1099.0,2.06681409]
[1760137937776,2.21029192,1105.2,1098.5,2.06681409]
[1760137938081,2.21029192,1105.7,1098.5,2.06681409]
[1760137938378,2.21029192,1105.7,1098.7,2.06681409]
[1760137938576,3.12258529,1105.9,1099.0,1.23036621]
[1760137938879,3.12258529,1105.9,1099.1,0.62774145]
[1760137939076,3.12258529,1105.9,1099.2,0.62774145]
[1760137939277,4.5529456,1099.3,1099.2,0.62774145]
[1760137939677,4.5529456,1099.3,1099.2,1.86060062]
[1760137939881,4.5529456,1099.3,1099.2,0.62774145]
[1760137940278,4.39472063,1099.3,1099.2,0.46946467]
[1760137941783,4.39472063,1099.3,1098.1,1.23285917]
[1760137941981,4.39472063,1099.3,1098.2,1.23285917]
[1760137942584,4.39472063,1099.3,1098.1,1.23285917]
[1760137942885,4.39472063,1099.3,1098.6,0.81856781]
[1760137943087,4.39472063,1099.3,1098.8,0.81856781]
[1760137943382,0.15829046,1099.2,1099.0,0.81856781]
[1760137943585,0.15829046,1099.2,1098.7,0.81856781]
[1760137943783,4.39472063,1099.3,1097.9,0.6602579]
[1760137944285,4.39472063,1099.3,1098.0,1.23285917]
[1760137944482,4.39472063,1099.3,1097.6,1.23285917]
[1760137944683,4.39472063,1099.3,1096.9,1.23285917]
[1760137944883,4.39472063,1099.3,1096.8,1.23285917]
[1760137945085,4.39472063,1099.3,1097.0,1.23285917]
[1760137945282,4.39472063,1099.3,1096.9,1.23285917]
[1760137945480,4.39472063,1099.3,1097.0,1.23285917]
[1760137945682,4.39472063,1099.3,1097.2,1.23285917]
[1760137945883,4.39472063,1099.3,1097.1,1.23285917]
[1760137946083,4.39472063,1099.3,1097.2,1.23285917]
[1760137946382,4.39472063,1099.3,1097.1,1.23285917]
[1760137946583,4.39472063,1099.3,1097.0,1.23285917]
[1760137946786,0.15842305,1098.8,1097.2,1.23285917]
[1760137946986,0.15842305,1098.8,1097.3,1.23285917]
[1760137947182,0.15842305,1098.8,1097.4,1.23285917]
[1760137947385,0.15842305,1098.8,1097.6,1.23285917]
[1760137947688,0.15842305,1098.8,1097.4,1.23285917]
[1760137947988,0.15842305,1098.8,1097.5,1.23285917]
[1760137948184,0.15842305,1098.8,1097.4,1.23285917]
[1760137948389,0.15842305,1098.8,1096.9,1.23285917]
[1760137948886,0.15842305,1098.8,1096.6,1.23285917]
[1760137949086,0.15842305,1098.8,1096.9,1.23285917]
[1760137949288,0.15842305,1098.8,1097.0,1.23285917]
[1760137949485,0.15842305,1098.8,1097.2,1.23285917]
[1760137949689,0.15842305,1098.8,1095.9,2.06681409]
[1760137949690,0.15842305,1098.8,1096.9,1.23285917]
[1760137949890,0.15842305,1098.8,1097.5,1.23285917]
[1760137950190,0.15842305,1098.8,1097.6,1.23285917]
[1760137950390,0.15842305,1098.8,1097.7,1.23285917]
[1760137950591,0.15842305,1098.8,1097.3,1.23285917]
[1760137950991,0.15842305,1098.8,1097.2,1.23285917]
[1760137951591,0.15842305,1098.8,1097.3,1.23285917]
[1760137951790,0.15842305,1098.8,1096.9,1.23285917]
[1760137951989,0.15842305,1098.8,1096.8,1.23285917]
[1760137952188,0.15842305,1098.8,1096.9,1.23285917]
[1760137952387,0.15842305,1098.8,1097.0,0.57854548]
[1760137952687,0.15842305,1098.8,1097.2,1.23285917]
[1760137952891,0.15842305,1098.8,1097.3,0.57854548]
[1760137953089,4.39472063,1099.3,1097.4,0.57854548]
[1760137953285,4.39472063,1099.3,1098.8,1.23368314]
[1760137953488,4.39472063,1099.3,1099.1,1.23368314]
[1760137953693,4.39472063,1099.3,1099.2,0.57854548]
[1760137954194,4.39472063,1099.3,1098.0,1.23126263]
[1760137954395,4.39472063,1099.3,1098.1,0.5714459]
[1760137954590,4.39472063,1099.3,1098.2,0.5714459]
[1760137954797,4.39472063,1099.3,1098.3,0.5714459]
[1760137954996,4.39472063,1099.3,1098.4,0.5714459]
[1760137955195,4.39472063,1099.3,1098.5,0.5714459]
[1760137955398,4.39472063,1099.3,1098.6,0.5714459]
[1760137955599,4.39472063,1099.3,1098.7,0.5714459]
[1760137955899,4.39472063,1099.3,1098.8,0.5714459]
[1760137956098,4.39472063,1099.3,1098.9,0.5714459]
[1760137956395,0.15825987,1099.2,1099.0,0.5714459]
[1760137956599,0.15825987,1099.2,1099.1,0.5714459]
[1760137956799,4.39472063,1099.3,1099.1,0.41313131]
[1760137956995,4.39472063,1099.3,1097.5,0.61612247]
[1760137957396,4.39472063,1099.3,1098.1,0.61612247]
[1760137957596,4.39472063,1099.3,1097.9,0.61612247]
[1760137957798,4.39472063,1099.3,1097.6,0.61612247]
[1760137958000,4.39472063,1099.3,1098.0,0.61612247]
[1760137958397,4.39472063,1099.3,1097.8,0.61612247]
[1760137958798,4.39472063,1099.3,1098.0,0.61612247]
[1760137959100,4.39472063,1099.3,1098.2,0.61612247]
[1760137959301,4.39472063,1099.3,1098.0,0.61612247]
[1760137959701,0.15829946,1099.0,1098.0,0.61612247]
[1760137959901,0.15829946,1099.0,1097.6,1.23201294]
[1760137960201,0.15829946,1099.0,1095.3,0.15846958]
[1760137960398,0.15829946,1099.0,1098.1,0.61641374]
[1760137960603,0.15829946,1099.0,1098.2,0.61641374]
[1760137960897,0.15829946,1099.0,1098.4,0.61641374]
[1760137961099,0.15829946,1099.0,1098.7,0.61641374]
[1760137961305,0.15829946,1099.0,1098.5,0.61641374]
[1760137961502,0.15829946,1099.0,1098.4,0.61641374]
[1760137961699,0.15829946,1099.0,1098.1,0.61641374]
[1760137962001,0.15829946,1099.0,1098.5,0.61641374]
[1760137962202,0.15829946,1099.0,1098.0,1.23282749]
[1760137962203,4.39472063,1099.3,1098.6,1.23282749]
[1760137962397,4.39472063,1099.3,1099.1,0.61507605]
[1760137962597,4.39472063,1099.3,1098.7,1.23282749]
[1760137962899,4.39472063,1099.3,1098.8,0.61548531]
[1760137963198,4.39472063,1099.3,1098.7,0.61548531]
[1760137963703,4.39472063,1099.3,1098.4,0.61548531]
[1760137963903,4.39472063,1099.3,1098.3,0.61548531]
[1760137964304,4.39472063,1099.3,1098.4,0.61548531]
[1760137964504,4.39472063,1099.3,1098.7,0.61548531]
[1760137964904,4.39472063,1099.3,1098.5,0.61548531]
[1760137965302,4.39472063,1099.3,1098.6,0.61548531]
[1760137965805,4.39472063,1099.3,1098.4,0.61548531]
[1760137966006,4.39472063,1099.3,1098.1,0.61548531]
[1760137966304,4.39472063,1099.3,1098.2,0.61548531]
[1760137967000,4.39472063,1099.3,1098.3,0.61548531]
[1760137967403,4.39472063,1099.3,1098.1,0.61548531]
[1760137967605,4.39472063,1099.3,1099.1,0.61548531]
[1760137967806,4.39472063,1099.3,1098.9,0.61548531]
[1760137968106,4.39472063,1099.3,1098.4,1.23282749]
[1760137968305,4.39472063,1099.3,1098.2,1.23282749]
[1760137968600,4.39472063,1099.3,1097.9,1.23282749]
[1760137968813,4.39472063,1099.3,1098.9,1.23282749]
[1760137969115,4.39472063,1099.3,1099.2,1.23282749]
[1760137969314,4.39472063,1099.3,1099.2,0.64410107]
[1760137969716,4.39472063,1099.3,1099.2,0.60921694]
[1760137970716,4.39472063,1099.3,1098.3,1.23282749]
[1760137970915,4.39472063,1099.3,1098.4,1.81949416]
[1760137971117,4.39472063,1099.3,1097.8,2.05471249]
[1760137971118,4.39472063,1099.3,1098.5,0.58666667]
[1760137971416,4.39472063,1099.3,1098.6,0.58666667]
[1760137971613,4.39472063,1099.3,1097.4,2.05471249]
[1760137971813,4.39472063,1099.3,1097.5,0.57177912]
[1760137972013,4.39472063,1099.3,1097.6,0.57177912]
[1760137972213,4.39472063,1099.3,1096.0,4.10942498]
[1760137972214,4.39472063,1099.3,1097.7,0.57177912]
[1760137972419,4.39472063,1099.3,1097.8,0.57177912]
[1760137972716,4.39472063,1099.3,1097.9,0.57177912]
[1760137972920,4.39472063,1099.3,1098.0,0.57177912]
[1760137973117,4.39472063,1099.3,1098.1,0.57177912]
[1760137973415,4.39472063,1099.3,1095.9,0.15839025]
[1760137973416,4.39472063,1099.3,1098.2,0.57177912]
[1760137973616,4.39472063,1099.3,1098.3,0.57177912]
[1760137973917,4.39472063,1099.3,1098.6,0.82593417]
[1760137974117,0.1582937,1099.1,1098.7,1.39771329]
[1760137974320,0.1582937,1099.1,1098.8,0.57177912]
[1760137974521,0.1582937,1099.1,1098.9,0.57177912]
[1760137974721,0.1582937,1099.1,1099.0,0.57177912]
[1760137975719,0.1582937,1099.1,1098.7,0.57177912]
[1760137975916,0.1582937,1099.1,1098.8,0.57177912]
[1760137976115,0.1582937,1099.1,1098.9,0.57177912]
[1760137976420,0.1582937,1099.1,1099.0,0.57177912]
[1760137978321,0.1582937,1099.1,1098.7,0.82593417]
[1760137978522,0.1582937,1099.1,1096.4,2.87659749]
[1760137978822,0.1582937,1099.1,1096.1,4.10942498]
[1760137983824,4.39472063,1099.3,1092.5,3.39]
[1760137986022,4.39472063,1099.3,1099.0,2.07000361]
[1760137986326,4.39472063,1099.3,1099.1,0.62517004]
[1760137986525,4.39472063,1099.3,1099.2,0.62517004]
[1760137991533,4.39472063,1099.3,1099.1,1.23629389]
[1760137991730,4.39472063,1099.3,1099.2,0.58027705]
[1760137992033,4.39472063,1099.3,1099.2,1.8182854]
[1760137992232,4.39472063,1099.3,1099.2,0.58027705]
[1760137996039,4.39472063,1099.3,1099.2,0.54496491]
[1760138003246,4.39472063,1099.3,1099.0,4.1270095]
[1760138003546,4.39472063,1099.3,1096.7,6.62401156]
[1760138003547,4.39472063,1099.3,1099.1,0.70157513]
[1760138003742,4.39472063,1099.3,1099.2,0.70157513]
[1760138008043,4.23669432,1099.3,1099.2,0.70157513]
[1760138009543,4.23669432,1099.3,1099.2,3.56743868]
[1760138010744,4.23669432,1099.3,1099.2,0.70157513]
[1760138011444,4.23669432,1099.3,1099.2,2.74812864]
[1760138011843,4.23669432,1099.3,1099.2,0.70157513]
[1760138014645,4.23669432,1099.3,1098.5,2.05163457]
[1760138014950,4.23669432,1099.3,1099.0,0.82490048]
[1760138015146,4.23669432,1099.3,1099.1,0.56596671]
[1760138015346,4.23669432,1099.3,1099.2,0.56596671]
[1760138015650,4.23669432,1099.3,1098.7,1.39086719]
[1760138015846,4.23669432,1099.3,1098.9,0.82490048]
[1760138016249,4.23669432,1099.3,1099.1,0.82490048]
[1760138016447,4.23669432,1099.3,1099.2,0.56596671]
[1760138016648,4.23669432,1099.3,1099.0,0.82490048]
[1760138016848,4.23669432,1099.3,1099.0,1.39086719]
[1760138017045,4.23669432,1099.3,1099.1,0.56596671]
[1760138017244,4.23669432,1099.3,1099.2,0.56596671]
[1760138017950,4.23669432,1099.3,1098.8,0.56596671]
[1760138018147,4.23669432,1099.3,1098.9,0.56596671]
[1760138018349,4.23669432,1099.3,1099.0,0.56596671]
[1760138018549,4.23669432,1099.3,1098.2,0.82490048]
[1760138018748,4.23669432,1099.3,1098.4,0.82490048]
[1760138019148,4.23669432,1099.3,1098.2,0.56515454]
[1760138019149,4.23669432,1099.3,1098.5,0.56515454]
[1760138019348,4.23669432,1099.3,1098.6,0.56515454]
[1760138019549,4.23669432,1099.3,1098.7,0.56515454]
[1760138019752,4.23669432,1099.3,1098.8,0.56515454]
[1760138019948,4.23669432,1099.3,1098.9,0.56515454]
[1760138020148,4.23669432,1099.3,1099.0,0.56515454]
[1760138020452,4.23669432,1099.3,1098.5,0.82490048]
[1760138020653,4.23669432,1099.3,1098.7,0.82490048]
[1760138020850,4.23669432,1099.3,1098.8,0.56558954]
[1760138021252,4.23669432,1099.3,1098.9,0.56558954]
[1760138021454,4.23669432,1099.3,1099.0,0.56558954]
[1760138021748,4.23669432,1099.3,1099.1,0.56558954]
[1760138021950,4.23669432,1099.3,1099.2,0.56558954]
[1760138022651,4.23669432,1099.3,1099.2,1.38885755]
[1760138022853,4.23669432,1099.3,1099.2,0.56558954]
[1760138024155,4.23669432,1099.3,1098.4,0.82326801]
[1760138024453,4.23669432,1099.3,1098.5,0.56623295]
[1760138024652,4.23669432,1099.3,1098.6,0.56623295]
[1760138024851,4.23669432,1099.3,1098.7,1.38950096]
[1760138025154,4.23669432,1099.3,1098.8,0.56623295]
[1760138025354,4.23669432,1099.3,1098.9,0.56623295]
[1760138025556,4.23669432,1099.3,1098.2,0.82326801]
[1760138025857,4.23669432,1099.3,1098.3,0.55891816]
[1760138026054,4.23669432,1099.3,1098.4,0.55891816]
[1760138026352,4.23669432,1099.3,1098.5,0.55891816]
[1760138026556,4.23669432,1099.3,1098.7,0.82326801]
[1760138026854,4.23669432,1099.3,1098.8,0.5585419]
[1760138027052,4.23669432,1099.3,1098.9,0.5585419]
[1760138027252,4.23669432,1099.3,1099.0,0.5585419]
[1760138027653,4.23669432,1099.3,1099.1,0.58507184]
[1760138027858,4.23669432,1099.3,1099.2,0.58507184]
[1760138028959,4.23669432,1099.3,1099.2,1.20592996]
[1760138029159,4.23669432,1099.3,1099.2,0.58507184]
[1760138029656,4.23669432,1099.3,1099.2,0.58637467]
[1760138032158,4.23669432,1099.3,1099.2,1.8237254]
[1760138032661,4.23669432,1099.3,1099.2,0.58637467]
[1760138035760,4.23669432,1099.3,1099.2,1.20680816]
[1760138036061,4.23669432,1099.3,1099.2,0.58637467]
[1760138038463,4.23669432,1099.3,1099.2,1.20890649]
[1760138038964,4.23669432,1099.3,1099.2,0.58637467]
[1760138039159,4.23669432,1099.3,1099.2,1.20882635]
[1760138039564,4.23669432,1099.3,1099.2,0.58637467]
[1760138039959,4.23669432,1099.3,1099.2,1.41498697]
[1760138040262,4.23669432,1099.3,1099.2,0.58637467]
[1760138040462,4.23669432,1099.3,1099.2,1.20852963]
[1760138040665,4.23669432,1099.3,1099.2,1.83066044]
[1760138040862,4.23669432,1099.3,1099.2,0.58637467]
[1760138041662,4.23669432,1099.3,1099.2,1.83476416]
[1760138041862,4.23669432,1099.3,1099.2,0.58637467]
[1760138043864,4.23669432,1099.3,1099.2,2.659486]
[1760138044368,4.23669432,1099.3,1099.2,0.58637467]
[1760138045163,4.0787211,1099.3,1099.2,0.58637467]
[1760138048062,3.92090405,1099.3,1099.2,0.58637467]
[1760138049863,3.92090405,1099.3,1099.2,4.64549632]
[1760138050363,3.92090405,1099.3,1099.2,7.48340093]
[1760138051067,3.76304226,1099.3,1099.2,7.48340093]
[1760138051364,3.76304226,1099.3,1099.2,4.64549632]
[1760138051969,3.76304226,1099.3,1099.2,0.58637467]
[1760138054069,3.60523166,1099.3,1099.2,0.58637467]
[1760138057174,3.44744574,1099.3,1099.2,0.58637467]
[1760138058573,3.44744574,1099.3,1098.4,6.62401156]
[1760138058778,3.44744574,1099.3,1098.5,0.61979024]
[1760138059077,3.44744574,1099.3,1098.6,8.89980469]
[1760138059274,3.44744574,1099.3,1098.7,0.61979024]
[1760138059576,3.44744574,1099.3,1098.8,0.61979024]
[1760138059774,3.44744574,1099.3,1099.2,3.98469344]
[1760138059980,3.44744574,1099.3,1099.2,4.60448368]
[1760138060174,3.28952198,1099.3,1099.2,4.60448368]
[1760138061876,3.28952198,1099.3,1099.2,0.61979024]
[1760138063282,3.13173141,1099.3,1099.2,0.61979024]
[1760138066280,2.97397303,1099.3,1099.2,0.61979024]
[1760138069186,2.8162454,1099.3,1099.2,0.61979024]
[1760138072188,0.06668154,1105.4,1099.2,0.61979024]
[1760138072384,0.06668154,1105.4,1103.7,0.58873188]
[1760138072584,3.07378095,1115.3,1103.8,0.61979024]
[1760138072788,3.07378095,1115.3,1103.9,0.61979024]
[1760138072989,3.07378095,1115.3,1104.0,1.40476608]
[1760138073284,3.07378095,1115.3,1104.1,1.20852212]
[1760138073488,3.07378095,1115.3,1104.2,0.61979024]
[1760138073692,3.07378095,1115.3,1104.3,0.61979024]
[1760138073885,3.07378095,1115.3,1104.4,0.64096333]
[1760138074189,3.07378095,1115.3,1104.0,0.58873188]
[1760138074388,3.07378095,1115.0,1104.3,0.58873188]
[1760138074585,3.07378095,1115.0,1104.4,0.64043729]
[1760138075287,3.07378095,1115.0,1104.5,3.52]
[1760138075487,0.15697844,1112.4,1104.6,0.64033301]
[1760138075691,0.15697844,1112.4,1104.7,0.64033301]
[1760138075889,0.15697844,1112.4,1104.8,0.64033301]
[1760138076188,0.15697844,1112.4,1104.9,0.64033301]
[1760138076392,0.15697844,1112.4,1104.5,4.10873188]
[1760138076687,0.15697844,1112.4,1104.5,3.52]
[1760138077288,0.15697844,1112.4,1104.6,0.64027542]
[1760138077590,0.15697844,1112.4,1104.5,3.52]
[1760138078287,0.15697844,1112.4,1104.6,0.63856407]
[1760138078492,0.15697844,1112.4,1104.5,3.52]
[1760138080994,0.15697844,1112.4,1104.6,0.64054826]
[1760138081189,0.15697844,1112.4,1104.7,0.64054826]
[1760138081494,0.15697844,1112.4,1104.5,3.52]
[1760138081693,0.15697844,1112.4,1104.6,0.641076]
[1760138081893,0.15697844,1112.4,1104.5,3.52]
[1760138082188,0.15697844,1112.4,1104.6,0.64052442]
[1760138082393,0.15697844,1112.4,1104.7,0.64052442]
[1760138082591,0.15697844,1112.4,1104.8,0.64105233]
[1760138082794,0.15697844,1112.4,1104.5,3.52]
[1760138082994,0.15697844,1112.4,1104.6,0.64106599]
[1760138083190,0.15697844,1112.4,1104.7,0.64106599]
[1760138083391,0.15697844,1112.4,1104.5,3.52]
[1760138083994,0.15697844,1112.4,1104.6,0.6412551]
[1760138084192,0.15697844,1112.4,1104.7,0.6412551]
[1760138084394,0.15697844,1112.4,1104.8,0.6412551]
[1760138084595,0.15697844,1112.4,1104.9,1.22998698]
[1760138084790,0.15697844,1112.4,1105.0,0.6412551]
[1760138084991,0.15697844,1112.4,1105.1,0.6412551]
[1760138085295,0.15697844,1112.4,1105.2,0.6412551]
[1760138085592,0.15697844,1112.4,1104.5,3.52]
[1760138085796,0.15697844,1112.4,1104.6,0.6429233]
[1760138085998,0.15697844,1112.4,1104.5,3.52]
[1760138087299,0.15697844,1112.4,1104.6,0.64393719]
[1760138087499,0.15697844,1112.4,1104.7,1.2352471]
[1760138087693,0.15697844,1112.4,1104.8,0.64393719]
[1760138087896,0.15697844,1112.4,1105.0,0.59130991]
[1760138088194,0.15697844,1112.4,1105.1,0.64393719]
[1760138088398,0.15697844,1112.4,1105.2,0.64393719]
[1760138088598,0.15697844,1112.4,1105.3,0.64393719]
[1760138088795,0.15697844,1112.4,1105.4,0.64442356]
[1760138088999,0.15697844,1112.4,1105.0,0.59130991]
[1760138089199,0.15697844,1112.4,1105.1,0.64466312]
[1760138089396,0.15697844,1112.4,1105.2,1.23597303]
[1760138089596,0.15697844,1112.4,1105.3,0.64466312]
[1760138089796,0.15697844,1112.4,1105.4,0.64466312]
[1760138089996,0.15697844,1112.4,1105.5,0.64466312]
[1760138090196,0.15697844,1112.4,1105.7,0.59130991]
[1760138090399,0.15697844,1112.4,1105.9,0.59130991]
[1760138090594,0.15697844,1112.4,1106.0,0.64466312]
[1760138090797,0.15697844,1112.4,1106.1,0.64466312]
[1760138090997,0.15697844,1112.4,1106.2,0.64466312]
[1760138091196,0.15697844,1112.4,1106.3,0.64466312]
[1760138091399,0.15697844,1112.4,1106.4,0.64466312]
[1760138091799,0.15697844,1112.4,1106.5,0.64466312]
[1760138091997,0.15697844,1112.4,1106.6,0.64466312]
[1760138092197,0.15697844,1112.4,1106.7,0.64466312]
[1760138092400,0.15697844,1112.4,1106.8,0.64466312]
[1760138092800,0.15697844,1112.4,1106.9,0.64466312]
[1760138093006,0.15697844,1112.4,1107.0,0.64466312]
[1760138093199,0.15697844,1112.4,1107.1,0.64466312]
[1760138093400,0.15697844,1112.4,1106.7,0.59130991]
[1760138093601,0.15697844,1112.4,1106.8,0.64420356]
[1760138093802,0.15697844,1112.4,1106.9,0.64420356]
[1760138093997,0.15697844,1112.4,1107.0,1.23551347]
[1760138094199,0.15697844,1112.4,1107.1,0.64420356]
[1760138094402,0.15697844,1112.4,1107.2,0.64420356]
[1760138094599,0.15697844,1112.4,1107.3,0.64420356]
[1760138094798,0.15697844,1112.4,1107.4,0.64420356]
[1760138094998,0.15697844,1112.4,1107.5,0.64420356]
[1760138095299,0.15697844,1112.4,1106.9,0.59130991]
[1760138095601,0.15697844,1112.4,1107.1,0.59130991]
[1760138095803,0.15697844,1112.4,1107.2,0.64484649]
[1760138096103,0.15697844,1112.4,1107.3,0.64484649]
[1760138096298,0.15697844,1112.4,1107.4,0.64484649]
[1760138096505,0.15697844,1112.4,1107.5,0.64484649]
[1760138096704,0.15697844,1112.4,1107.6,0.64484649]
[1760138096904,0.15697844,1112.4,1107.7,0.64484649]
[1760138097101,3.07378095,1117.3,1107.0,0.59130991]
[1760138097400,4.15716325,1118.2,1107.2,0.59130991]
[1760138097401,3.07378095,1117.5,1107.2,0.59130991]
[1760138097600,3.07378095,1117.5,1106.7,0.59130991]
[1760138097801,3.07378095,1117.5,1106.4,0.59130991]
[1760138098105,3.07378095,1117.5,1106.6,0.59130991]
[1760138098304,3.07378095,1116.4,1106.9,0.59130991]
[1760138098804,3.07378095,1116.4,1107.0,0.59130991]
[1760138099102,3.07378095,1116.4,1106.9,0.59130991]
[1760138099405,3.07378095,1116.4,1106.6,0.78497584]
[1760138099406,3.07378095,1114.6,1106.8,0.59130991]
[1760138099899,3.07378095,1114.6,1106.7,0.59130991]
[1760138100204,3.07378095,1114.6,1106.5,0.43441994]
[1760138100405,2.14133893,1114.2,1105.5,0.78497584]
[1760138100700,2.14133893,1114.6,1105.8,0.78497584]
[1760138100904,2.14133893,1114.3,1105.9,0.78497584]
[1760138101103,2.14133893,1114.3,1105.8,0.78497584]
[1760138101305,2.14133893,1114.3,1105.9,0.78497584]
[1760138101502,2.14133893,1113.2,1105.9,0.78497584]
[1760138101704,3.07378095,1114.8,1105.9,0.78497584]
[1760138101705,2.14133893,1113.6,1105.9,0.78497584]
[1760138102003,2.14133893,1114.0,1106.1,0.78497584]
[1760138102202,2.14133893,1114.2,1106.2,0.78497584]
[1760138102405,2.14133893,1113.6,1106.7,0.78497584]
[1760138102602,2.14133893,1113.8,1106.9,0.78497584]
[1760138102804,2.14133893,1113.8,1106.8,0.78497584]
[1760138103002,0.15687936,1112.1,1106.8,0.78497584]
[1760138103203,0.15687936,1112.1,1105.5,1.96243961]
[1760138103204,0.15687936,1112.1,1107.0,0.78497584]
[1760138103501,0.15687936,1112.1,1107.1,0.78497584]
[1760138103703,0.15687936,1112.1,1107.0,0.78497584]
[1760138103902,3.07378095,1116.4,1104.8,3.92487922]
[1760138103903,2.14133893,1114.2,1106.6,0.62814632]
[1760138104101,2.14133893,1114.2,1106.3,0.62814632]
[1760138104406,2.14133893,1112.5,1105.5,1.17746376]
[1760138104603,2.14133893,1112.5,1105.4,1.17746376]
[1760138104808,2.14133893,1113.4,1105.9,1.17746376]
[1760138105104,2.14133893,1113.5,1106.2,1.17746376]
[1760138105408,2.14133893,1113.3,1106.5,1.17746376]
[1760138105603,2.14133893,1113.3,1106.2,1.17746376]
[1760138105805,2.14133893,1113.3,1106.1,1.17746376]
[1760138106005,2.14133893,1113.8,1106.2,1.17746376]
[1760138106209,2.14133893,1113.8,1105.9,1.17746376]
[1760138106508,2.14133893,1112.2,1105.3,1.17746376]
[1760138106902,0.15698481,1111.9,1105.3,1.17746376]
[1760138107107,2.14133893,1111.6,1105.3,1.17746376]
[1760138107505,0.15698481,1111.9,1105.3,1.17746376]
[1760138107709,0.15698481,1111.9,1105.1,1.17746376]
[1760138108004,0.15698481,1111.9,1105.5,1.17746376]
[1760138108408,0.15698481,1111.9,1105.7,1.17746376]
[1760138108606,0.15698481,1111.9,1105.6,1.17746376]
[1760138108811,0.15698481,1111.9,1105.5,1.17746376]
[1760138109111,0.15698481,1111.9,1105.6,1.75892071]
[1760138109406,2.14133893,1111.4,1105.7,0.58145695]
[1760138109609,2.14133893,1111.4,1105.8,0.58145695]
[1760138109809,2.14133893,1111.4,1105.9,0.58145695]
[1760138110009,2.14133893,1111.3,1106.0,0.58145695]
[1760138110209,2.14133893,1111.3,1104.9,1.17746376]
[1760138110410,2.14133893,1111.3,1105.0,0.42663718]
[1760138110608,2.14133893,1111.1,1104.9,1.17746376]
[1760138110809,2.14133893,1111.2,1105.5,1.17746376]
[1760138111009,2.14133893,1111.6,1105.7,1.17746376]
[1760138111411,2.14133893,1112.2,1105.9,1.17746376]
[1760138111712,2.14133893,1112.2,1105.6,1.17746376]
[1760138112010,2.14133893,1112.2,1104.5,3.52]
[1760138112011,2.14133893,1111.7,1105.3,1.17746376]
[1760138112612,2.14133893,1111.2,1104.9,1.17746376]
[1760138112810,2.14133893,1111.2,1104.8,1.17746376]
[1760138113110,2.14133893,1111.3,1104.9,1.17746376]
[1760138113307,0.15709323,1109.7,1105.0,1.17746376]
[1760138113910,0.15709323,1109.7,1104.5,3.52]
[1760138117118,0.15709323,1109.7,1104.8,1.23574438]
[1760138117314,0.15709323,1109.7,1104.5,3.52]
[1760138117512,0.15709323,1109.7,1104.5,4.75574438]
[1760138117711,0.15709323,1109.7,1104.5,3.52]
[1760138118113,0.15709323,1109.7,1104.5,4.75574438]
[1760138118314,0.15709323,1109.7,1104.6,1.23574438]
[1760138118512,0.15709323,1109.7,1104.9,1.23574438]
[1760138118812,0.15709323,1109.7,1104.8,1.23574438]
[1760138119014,0.87810315,1109.2,1104.3,1.23574438]
[1760138119212,0.87810315,1108.9,1104.2,1.23574438]
[1760138119415,0.87810315,1108.7,1104.3,1.23574438]
[1760138119616,0.87810315,1108.8,1104.2,1.23574438]
[1760138119815,0.87810315,1108.7,1103.5,1.23574438]
[1760138120619,0.87810315,1108.5,1103.7,1.23574438]
[1760138120813,0.87810315,1108.5,1101.4,2.88340357]
[1760138120814,0.87810315,1108.6,1104.3,1.23574438]
[1760138121016,0.87810315,1108.0,1103.3,1.23574438]
[1760138121216,0.87810315,1108.0,1103.2,1.23574438]
[1760138121518,0.87810315,1107.9,1103.2,1.23574438]
[1760138121818,0.87810315,1107.5,1103.4,1.23574438]